fUSD/lending_fUSD_20251031
["ID","MTS","AMOUNT","RATE_DAILY","PERIOD"]
[392741735,1761900560625,150.17358341,0.00031506,120]
[392741736,1761900560811,629.42,0.00031506,120]
[392741737,1761900560898,500.0,0.00031232,120]
[392741738,1761900561129,500.0,0.00031506,120]
[392741739,1761900561952,500.0,0.00031232,120]
[392741740,1761900562178,500.0,0.00031506,120]
[392741741,1761900563390,500.0,0.00031232,120]
[392741742,1761900563696,626.47069564,0.00031506,120]
[392741743,1761900563814,578.97,0.00031232,120]
[392741744,1761900563999,886.45,0.00031232,120]
[392741745,1761900564058,578.97,0.00031506,120]
[392741746,1761900564228,886.45,0.00031506,120]
[392741747,1761900566725,500.0,0.00031232,120]
[392741748,1761900566988,500.0,0.00031506,120]
[392741749,1761900567319,602.51306157,0.00031232,120]
[392741750,1761900567359,362.23041833,0.00031232,120]
[392741751,1761900567488,152.95914326,0.00031232,120]
[392741752,1761900568384,500.0,0.00031232,120]
[392741753,1761900569269,500.0,0.00031232,120]
[392741754,1761900569435,500.0,0.00031232,120]
[392741755,1761900569598,500.0,0.00031506,120]
[392741756,1761900569687,500.0,0.00031506,120]
[392741757,1761900570292,500.0,0.00031232,120]
[392741758,1761900570356,500.0,0.00031506,120]
[392741759,1761900570932,500.0,0.00031232,120]
[392741760,1761900571308,500.0,0.00031506,120]
[392741761,1761900571355,577.80456455,0.00031232,120]
[392741762,1761900572355,500.0,0.00031232,120]
[392741763,1761900572553,490.4020366,0.00031232,120]
[392741764,1761900572599,518.63387951,0.00031506,120]
[392741765,1761900572899,500.0,0.00031232,120]
[392741766,1761900573032,500.0,0.00031232,120]
[392741767,1761900573111,595.72,0.00031232,120]
[392741768,1761900573163,500.0,0.00031506,120]
[392741769,1761900573231,530.17448625,0.00031232,120]
[392741770,1761900573295,500.0,0.00031506,120]
[392741771,1761900573376,595.72,0.00031506,120]
[392741772,1761900575101,500.0,0.00031232,120]
[392741773,1761900575325,500.0,0.00031506,120]
[392741774,1761900576098,500.0,0.00031232,120]
[392741775,1761900576190,500.0,0.00031506,120]
[392741776,1761900576265,500.0,0.00031232,120]
[392741777,1761900576365,220.59274653,0.00031506,120]
[392741778,1761900576923,500.0,0.00031232,120]
[392741779,1761900577158,500.0,0.00031506,120]
[392741780,1761900577475,500.0,0.00031232,120]
[392741781,1761900577784,500.0,0.00031506,120]
[392741782,1761900578178,500.0,0.00031232,120]
[392741783,1761900578427,500.0,0.00031506,120]
[392741784,1761900578643,500.0,0.00031232,120]
[392741785,1761900579155,500.0,0.00031506,120]
[392741786,1761900580030,500.0,0.00031232,120]
[392741787,1761900580615,500.0,0.00031506,120]
[392741788,1761900580720,500.0,0.00031232,120]
[392741789,1761900580955,500.0,0.00031506,120]
[392741790,1761900581075,500.0,0.00031232,120]
[392741791,1761900581208,500.0,0.00031232,120]
[392741792,1761900581319,500.0,0.00031506,120]
[392741793,1761900581455,583.83535939,0.00031506,120]
[392741794,1761900581656,500.0,0.00031232,120]
[392741795,1761900581874,500.0,0.00031506,120]
[392741796,1761900582186,500.0,0.00031232,120]
[392741797,1761900582430,500.0,0.00031506,120]
[392741798,1761900582471,500.0,0.00031232,120]
[392741799,1761900582665,500.0,0.00031506,120]
[392741800,1761900583561,500.0,0.00031232,120]
[392741801,1761900583837,500.0,0.00031506,120]
[392741802,1761900583936,500.0,0.00031232,120]
[392741803,1761900584051,500.0,0.00031232,120]
[392741804,1761900584184,500.0,0.00031506,120]
[392741805,1761900584305,500.0,0.00031506,120]
[392741806,1761900584698,305.49721141,0.00031232,120]
[392741807,1761900585483,500.0,0.00031232,120]
[392741808,1761900585541,500.0,0.00031232,120]
[392741809,1761900585794,500.0,0.00031506,120]
[392741810,1761900585868,500.0,0.00031506,120]
[392741811,1761900586150,746.59,0.00031232,120]
[392741812,1761900586271,500.0,0.00031232,120]
[392741813,1761900586449,746.59,0.00031506,120]
[392741814,1761900586497,291.33728437,0.00031506,120]
[392741815,1761900587603,500.0,0.00031232,120]
[392741816,1761900587643,500.0,0.00031232,120]
[392741817,1761900587680,500.0,0.00031232,120]
[392741818,1761900587798,364.49337452,0.00031506,120]
[392741819,1761900587845,241.45150506,0.00031506,120]
[392741820,1761900587885,500.0,0.00031506,120]
[392741821,1761900588166,500.0,0.00031232,120]
[392741822,1761900588247,500.0,0.00031232,120]
[392741823,1761900588439,500.0,0.00031506,120]
[392741824,1761900588485,527.5994341,0.00031232,120]
[392741825,1761900588525,296.23670822,0.00031232,120]
[392741826,1761900588570,500.0,0.00031506,120]
[392741827,1761900589913,500.0,0.00031232,120]
[392741828,1761900589957,437.90576041,0.00031232,120]
[392741829,1761900590001,500.0,0.00031232,120]
[392741830,1761900590216,500.0,0.00031506,120]
[392741831,1761900590402,500.0,0.00031506,120]
[392741832,1761900591756,500.0,0.00031232,120]
[392741833,1761900591806,522.97047996,0.00031232,120]
[392741834,1761900592176,500.0,0.00031232,120]
[392741835,1761900592425,500.0,0.00031506,120]
[392741836,1761900593115,524.74179882,0.00031232,120]
[392741837,1761900593414,500.0,0.00031232,120]
[392741838,1761900593699,500.0,0.00031506,120]
[392741839,1761900594091,500.0,0.00031232,120]
[392741840,1761900594141,478.32598148,0.00031232,120]
[392741841,1761900594845,500.0,0.00031232,120]
[392741842,1761900594886,500.0,0.00031506,120]
[392741843,1761900594999,508.0455892,0.00031232,120]
[392741844,1761900595084,500.0,0.00031506,120]
[392741845,1761900596026,500.0,0.00031232,120]
[392741846,1761900596265,500.0,0.00031506,120]
[392741847,1761900596431,500.0,0.00031232,120]
[392741848,1761900596676,500.0,0.00031506,120]
[392741849,1761900596849,500.0,0.00031232,120]
[392741850,1761900597093,500.0,0.00031506,120]
[392741851,1761900598493,500.0,0.00031232,120]
[392741852,1761900598749,500.0,0.00031506,120]
[392741853,1761900599070,500.0,0.00031232,120]
[392741854,1761900599165,500.0,0.00031232,120]
[392741855,1761900599312,500.0,0.00031506,120]
[392741856,1761900599353,500.0,0.00031232,120]
[392741857,1761900599395,411.37269716,0.00031506,120]
[392741858,1761900599567,500.0,0.00031506,120]
[392741859,1761900600283,500.0,0.00031232,120]
[392741860,1761900600524,500.0,0.00031506,120]
[392741861,1761900600871,500.0,0.00031232,120]
[392741862,1761900602029,500.0,0.00031506,120]
[392741863,1761900602534,500.0,0.00031232,120]
[392741864,1761900602739,500.0,0.00031232,120]
[392741865,1761900602780,500.0,0.00031506,120]
[392741866,1761900602820,264.53063814,0.00031232,120]
[392741867,1761900603007,500.0,0.00031506,120]
[392741868,1761900604136,500.0,0.00031232,120]
[392741869,1761900604402,500.0,0.00031506,120]
[392741870,1761900604768,500.0,0.00031232,120]
[392741871,1761900605015,500.0,0.00031506,120]
[392741872,1761900605224,500.0,0.00031232,120]
[392741873,1761900605481,500.0,0.00031506,120]
[392741874,1761900605728,500.0,0.00031232,120]
[392741875,1761900605986,500.0,0.00031506,120]
[392741876,1761900609190,424.35322711,0.00031232,120]
[392741877,1761900609660,500.0,0.00031232,120]
[392741878,1761900609902,500.0,0.00031506,120]
[392741879,1761900612266,500.0,0.00031232,120]
[392741880,1761900612493,500.0,0.00031506,120]
[392741881,1761900613196,500.0,0.00031232,120]
[392741882,1761900613438,500.0,0.00031506,120]
[392741883,1761900613505,290.8780262,0.00031232,120]
[392741884,1761900613704,500.0,0.00031232,120]
[392741885,1761900613943,514.97888967,0.00031506,120]
[392741886,1761900614148,500.0,0.00031232,120]
[392741887,1761900614214,500.0,0.00031232,120]
[392741888,1761900614477,500.0,0.00031506,120]
[392741889,1761900614529,344.71137629,0.00031506,120]
[392741890,1761900614971,500.0,0.00031232,120]
[392741891,1761900615047,500.0,0.00031232,120]
[392741892,1761900615203,606.77627008,0.00031506,120]
[392741893,1761900615357,500.0,0.00031506,120]
[392741894,1761900616090,500.0,0.00031232,120]
[392741895,1761900616358,226.01792359,0.00031506,120]
[392741896,1761900616462,552.73925088,0.00031232,120]
[392741897,1761900617107,500.0,0.00031232,120]
[392741898,1761900617362,500.0,0.00031506,120]
[392741899,1761900617691,500.0,0.00031232,120]
[392741900,1761900617921,500.0,0.00031506,120]
[392741901,1761900618194,500.0,0.00031232,120]
[392741902,1761900618319,500.0,0.00031232,120]
[392741903,1761900618411,500.0,0.00031506,120]
[392741904,1761900618473,500.0,0.00031232,120]
[392741905,1761900618562,500.0,0.00031506,120]
[392741906,1761900618713,500.0,0.00031506,120]
[392741907,1761900619866,500.0,0.00031232,120]
[392741908,1761900619950,500.0,0.00031506,120]
[392741909,1761900620458,500.0,0.00031232,120]
[392741910,1761900620725,500.0,0.00031506,120]
[392741911,1761900621202,500.0,0.00031232,120]
[392741912,1761900621491,500.0,0.00031506,120]
[392741913,1761900621590,500.0,0.00031232,120]
[392741914,1761900621650,418.64271982,0.00031232,120]
[392741915,1761900621852,500.0,0.00031506,120]
[392741916,1761900624224,500.0,0.00031232,120]
[392741917,1761900624460,500.0,0.00031506,120]
[392741918,1761900624585,500.0,0.00031232,120]
[392741919,1761900624813,500.0,0.00031506,120]
[392741920,1761900625916,500.0,0.00031232,120]
[392741921,1761900625983,1021.85,0.00031232,120]
[392741922,1761900626164,571.86339994,0.00031506,120]
[392741923,1761900626249,1021.85,0.00031506,120]
[392741924,1761900626864,205.66994599,0.00031232,120]
[392741925,1761900628698,954.89,0.00031232,120]
[392741926,1761900628775,500.0,0.00031232,120]
[392741927,1761900628831,954.89,0.00031506,120]
[392741928,1761900628921,500.0,0.00031506,120]
[392741929,1761900629071,500.0,0.00031232,120]
[392741930,1761900629308,500.0,0.00031506,120]
[392741931,1761900630341,500.0,0.00031232,120]
[392741932,1761900630502,500.0,0.00031232,120]
[392741933,1761900630566,500.0,0.00031232,120]
[392741934,1761900630622,524.69995469,0.00031506,120]
[392741935,1761900630731,500.0,0.00031506,120]
[392741936,1761900630807,500.0,0.00031506,120]
[392741937,1761900631019,500.0,0.00031232,120]
[392741938,1761900631272,240.11774323,0.00031506,120]
[392741940,1761900631780,-150.0,0.00014237,2]
[392741941,1761900631790,-300.0,0.00014247,2]
[392741942,1761900631801,-177.03415411,0.00014257,2]
[392741943,1761900631887,-122.96584589,0.00014257,2]
[392741944,1761900631897,-195.0,0.00014257,2]
[392741945,1761900631907,-202.84790789,0.00014278,2]
[392741946,1761900631917,-473.30876524,0.00014319,2]
[392741947,1761900631941,-104.90047784,0.00014319,2]
[392741948,1761900631951,-195.0,0.00014397,2]
[392741949,1761900631961,-1000.0,0.00014954,2]
[392741950,1761900631971,-332.403,0.00014954,2]
[392741951,1761900631980,-1200.0,0.0001497,2]
[392741952,1761900631990,-300.0,0.00014972,2]
[392741953,1761900631999,-300.0,0.00014972,2]
[392741954,1761900632009,-501.45216881,0.00014973,2]
[392741955,1761900632019,-94.18589241,0.00014973,2]
[392741956,1761900632030,-405.81410759,0.00014973,2]
[392741957,1761900632039,-469.0593022,0.00014973,2]
[392741958,1761900632071,-30.9406978,0.00014973,2]
[392741959,1761900632080,-500.0,0.00014973,2]
[392741960,1761900632089,-500.0,0.00014973,2]
[392741961,1761900632099,-13.21324007,0.00014973,2]
[392741963,1761900632114,-326.03172292,0.00014973,2]
[392742006,1761900632445,533.87557431,0.00031232,120]
[392742013,1761900632511,500.0,0.00031232,120]
[392742059,1761900633025,500.0,0.00031506,120]
[392742095,1761900633469,500.0,0.00031232,120]
[392742096,1761900633667,274.93538734,0.00031506,120]
[392742097,1761900633979,500.0,0.00031232,120]
[392742098,1761900634221,500.0,0.00031506,120]
[392742099,1761900634605,515.64872409,0.00031232,120]
[392742100,1761900634907,185.11347591,0.00031232,120]
[392742101,1761900635468,808.97,0.00031232,120]
[392742102,1761900635566,500.0,0.00031232,120]
[392742103,1761900635623,582.9,0.00031232,120]
[392742104,1761900635708,808.97,0.00031506,120]
[392742105,1761900635809,500.0,0.00031506,120]
[392742106,1761900635887,582.9,0.00031506,120]
[392742107,1761900636030,500.0,0.00031232,120]
[392742108,1761900636270,500.0,0.00031506,120]
[392742109,1761900636313,500.0,0.00031232,120]
[392742110,1761900636945,173.9028151,0.00031232,120]
[392742115,1761900637702,-166.65053217,0.00014973,2]
[392742116,1761900637711,-498.33879172,0.00014973,2]
[392742117,1761900637911,-1.66120828,0.00014973,2]
[392742118,1761900637921,-500.0,0.00014979,2]
[392742119,1761900637930,-500.0,0.00014979,2]
[392742120,1761900637940,-500.0,0.00014979,2]
[392742121,1761900637949,-277.35679052,0.00014981,2]
[392742122,1761900637958,-195.26206961,0.00014986,2]
[392742123,1761900637967,-168.087,0.00014989,2]
[392742124,1761900637981,-150.0,0.00014989,2]
[392742125,1761900637990,-11283.09,0.0001499,2]
[392742126,1761900637999,-1166.01651341,0.0001499,2]
[392742127,1761900638015,-10117.07348659,0.0001499,2]
[392742129,1761900638024,-1059.79,0.00014991,2]
[392742130,1761900638033,-3499.503,0.00014991,2]
[392742132,1761900638043,-500.0,0.00014991,2]
[392742134,1761900638052,-500.0,0.00014991,2]
[392742136,1761900638062,-500.0,0.00014991,2]
[392742139,1761900638073,-500.0,0.00014991,2]
[392742140,1761900638082,-500.0,0.00014991,2]
[392742142,1761900638091,-500.0,0.00014991,2]
[392742144,1761900638101,-500.0,0.00014991,2]
[392742147,1761900638112,-500.0,0.00014991,2]
[392742148,1761900638121,-500.0,0.00014991,2]
[392742150,1761900638131,-500.0,0.00014991,2]
[392742152,1761900638140,-500.0,0.00014991,2]
[392742154,1761900638150,-500.0,0.00014991,2]
[392742156,1761900638160,-500.0,0.00014991,2]
[392742158,1761900638169,-500.0,0.00014991,2]
[392742161,1761900638183,-500.0,0.00014991,2]
[392742162,1761900638192,-500.0,0.00014991,2]
[392742163,1761900638202,-151.0,0.00014991,2]
[392742164,1761900638212,-500.0,0.00014991,2]
[392742165,1761900638221,-500.0,0.00014991,2]
[392742166,1761900638231,-151.0,0.00014991,2]
[392742167,1761900638240,-500.0,0.00014991,2]
[392742168,1761900638250,-500.0,0.00014991,2]
[392742169,1761900638260,-151.0,0.00014991,2]
[392742170,1761900638270,-500.0,0.00014991,2]
[392742171,1761900638279,-151.0,0.00014991,2]
[392742172,1761900638288,-278.00521688,0.00014991,2]
[392742173,1761900638299,-151.0,0.00014991,2]
[392742174,1761900638308,-151.0,0.00014991,2]
[392742175,1761900638318,-151.0,0.00014991,2]
[392742176,1761900638328,-151.0,0.00014991,2]
[392742177,1761900638337,-151.0,0.00014991,2]
[392742178,1761900638347,-151.0,0.00014991,2]
[392742179,1761900638357,-291.98475699,0.00014991,2]
[392742180,1761900638368,-574.12855637,0.00014991,2]
[392742181,1761900638381,-151.0,0.00014991,2]
[392742182,1761900638391,-500.0,0.00014991,2]
[392742183,1761900638403,-500.0,0.00014991,2]
[392742184,1761900638413,-214.26309035,0.00014991,2]
[392742185,1761900638422,-209.40437684,0.00014991,2]
[392742186,1761900638432,-203.35165968,0.00014998,2]
[392742187,1761900638441,-500.0,0.00014998,2]
[392742188,1761900638451,-500.0,0.00014998,2]
[392742189,1761900638461,-500.0,0.00014999,2]
[392742190,1761900638470,-194.30136654,0.00014999,2]
[392742191,1761900638480,-258.04194863,0.00014999,2]
[392742192,1761900638489,-500.0,0.00014999,2]
[392742193,1761900638498,-500.0,0.00014999,2]
[392742194,1761900638508,-593.39870023,0.00014999,2]
[392742195,1761900638518,-500.0,0.00014999,2]
[392742196,1761900638527,-514.70876017,0.00014999,2]
[392742197,1761900638536,-500.0,0.00014999,2]
[392742198,1761900638546,-324.22260275,0.00014999,2]
[392742199,1761900638555,-500.0,0.00014999,2]
[392742200,1761900638564,-563.45412786,0.00014999,2]
[392742201,1761900638576,-500.0,0.00014999,2]
[392742202,1761900638586,-500.0,0.00014999,2]
[392742203,1761900638595,-417.09066531,0.00014999,2]
[392742204,1761900638605,-500.0,0.00014999,2]
[392742205,1761900638615,-500.0,0.00014999,2]
[392742206,1761900638624,-1523.0,0.00015,2]
[392742207,1761900638633,-2525972.59723463,0.00015,2]
[392742208,1761900638704,500.0,0.00031232,120]
[392742209,1761900638864,538.87848774,0.00031506,120]
[392742210,1761900639164,500.0,0.00031232,120]
[392742211,1761900639389,500.0,0.00031506,120]
[392742212,1761900639434,500.0,0.00031232,120]
[392742214,1761900639591,1157.54,0.00031232,120]
[392742215,1761900639636,500.0,0.00031506,120]
[392742217,1761900639684,500.0,0.00031232,120]
[392742234,1761900639878,500.0,0.00031506,120]
[392742237,1761900639924,1157.54,0.00031506,120]
[392742238,1761900639963,-1229.91866044,0.00015,2]
[392742239,1761900640172,-764179.45815193,0.00015,2]
[392742262,1761900641758,500.0,0.00031232,120]
[392742263,1761900641985,515.73147858,0.00031506,120]
[392742282,1761900644339,500.0,0.00031232,120]
[392742283,1761900644523,500.0,0.00031506,120]
[392742284,1761900644681,500.0,0.00031232,120]
[392742285,1761900644768,500.0,0.00031232,120]
[392742286,1761900644878,500.0,0.00031506,120]
[392742287,1761900644990,500.0,0.00031506,120]
[392742288,1761900645072,500.0,0.00031232,120]
[392742289,1761900645119,500.0,0.00031232,120]
[392742290,1761900645306,500.0,0.00031506,120]
[392742291,1761900645368,500.0,0.00031506,120]
[392742292,1761900646051,525.20001019,0.00031232,120]
[392742293,1761900646082,-1298.69793954,0.00015,2]
[392742294,1761900646188,-89388.31336874,0.00015,2]
[392742296,1761900646524,500.0,0.00031232,120]
[392742297,1761900646758,500.0,0.00031506,120]
[392742298,1761900648902,500.0,0.00031232,120]
[392742299,1761900648968,507.62,0.00031232,120]
[392742300,1761900649127,1101.59,0.00031232,120]
[392742301,1761900649172,585.06377905,0.00031506,120]
[392742302,1761900649220,507.62,0.00031506,120]
[392742303,1761900649299,500.0,0.00031232,120]
[392742304,1761900649358,1101.59,0.00031506,120]
[392742305,1761900649533,513.18800653,0.00031506,120]
[392742306,1761900649580,500.0,0.00031232,120]
[392742307,1761900649780,500.0,0.00031506,120]
[392742308,1761900649929,276.3542532,0.00031232,120]
[392742309,1761900650521,525.2912579,0.00031232,120]
[392742310,1761900650692,522.99092,0.00031232,120]
[392742311,1761900651769,220.71544007,0.00031232,120]
[392742312,1761900652642,500.0,0.00031232,120]
[392742313,1761900652725,500.0,0.00031506,120]
[392742314,1761900653315,1191.25,0.00031232,120]
[392742315,1761900653563,1191.25,0.00031506,120]
[392742316,1761900654130,500.0,0.00031232,120]
[392742317,1761900654181,589.48,0.00031232,120]
[392742318,1761900654385,500.0,0.00031506,120]
[392742319,1761900654431,589.48,0.00031506,120]
[392742320,1761900655028,500.0,0.00031232,120]
[392742321,1761900655315,500.0,0.00031506,120]
[392742322,1761900655419,522.11287412,0.00031232,120]
[392742323,1761900655467,608.38998233,0.00031232,120]
[392742324,1761900655847,500.0,0.00031232,120]
[392742325,1761900656091,500.0,0.00031506,120]
[392742326,1761900656317,500.0,0.00031232,120]
[392742327,1761900656578,500.0,0.00031506,120]
[392742328,1761900657087,513.99669403,0.00031232,120]
[392742329,1761900657130,500.0,0.00031232,120]
[392742330,1761900657301,2077.21,0.000312,120]
[392742331,1761900657361,500.0,0.00031506,120]
[392742332,1761900657409,569.91,0.00031232,120]
[392742333,1761900657460,500.0,0.00031232,120]
[392742334,1761900657599,569.91,0.00031506,120]
[392742335,1761900657666,500.0,0.00031506,120]
[392742336,1761900659296,500.0,0.00031232,120]
[392742337,1761900659527,500.0,0.00031506,120]
[392742338,1761900659749,500.0,0.00031232,120]
[392742339,1761900659985,500.0,0.00031506,120]
[392742340,1761900660319,500.0,0.00031232,120]
[392742341,1761900660374,512.40597164,0.00031232,120]
[392742342,1761900660556,500.0,0.00031506,120]
[392742343,1761900662298,500.0,0.00031232,120]
[392742344,1761900662343,500.0,0.00031232,120]
[392742345,1761900662393,500.0,0.00031232,120]
[392742346,1761900662534,500.0,0.00031506,120]
[392742347,1761900662578,500.0,0.00031506,120]
[392742348,1761900662632,500.0,0.00031506,120]
[392742349,1761900663140,385.55628599,0.00031232,120]
[392742350,1761900663610,740.34,0.00031232,120]
[392742351,1761900663850,740.34,0.00031506,120]
[392742352,1761900663902,500.0,0.00031232,120]
[392742353,1761900664333,500.0,0.00031506,120]
[392742354,1761900664916,500.0,0.00031232,120]
[392742355,1761900664962,500.0,0.00031232,120]
[392742356,1761900665071,529.0223714,0.00031232,120]
[392742357,1761900665120,524.47813344,0.00031232,120]
[392742358,1761900665163,578.6058792,0.00031506,120]
[392742359,1761900665205,500.0,0.00031506,120]
[392742360,1761900667216,513.32005956,0.00031232,120]
[392742361,1761900667905,595.88,0.00031232,120]
[392742362,1761900668149,595.88,0.00031506,120]
[392742363,1761900668406,500.0,0.00031232,120]
[392742364,1761900668492,500.0,0.00031232,120]
[392742365,1761900668628,715.23,0.00031232,120]
[392742366,1761900668674,323.65871592,0.00031506,120]
[392742367,1761900668756,500.0,0.00031506,120]
[392742368,1761900668920,715.23,0.00031506,120]
[392742369,1761900669665,500.0,0.00031232,120]
[392742370,1761900669808,500.0,0.00031232,120]
[392742371,1761900670118,500.0,0.00031232,120]
[392742372,1761900670160,500.0,0.00031506,120]
[392742373,1761900670230,500.0,0.00031232,120]
[392742374,1761900670283,676.09,0.00031232,120]
[392742375,1761900670332,500.0,0.00031506,120]
[392742376,1761900670393,500.0,0.00031506,120]
[392742377,1761900670441,676.09,0.00031506,120]
[392742378,1761900672204,530.19872288,0.00031232,120]
[392742379,1761900672530,500.0,0.00031232,120]
[392742380,1761900672763,500.0,0.00031506,120]
[392742381,1761900672995,500.0,0.00031232,120]
[392742382,1761900673236,500.0,0.00031506,120]
[392742383,1761900673730,500.0,0.00031232,120]
[392742384,1761900673996,500.0,0.00031506,120]
[392742385,1761900675289,500.0,0.00031232,120]
[392742386,1761900675563,500.0,0.00031506,120]
[392742387,1761900675898,500.0,0.00031232,120]
[392742388,1761900676149,500.0,0.00031506,120]
[392742389,1761900676547,500.0,0.00031232,120]
[392742390,1761900676950,500.0,0.00031506,120]
[392742391,1761900677709,283.25718708,0.00031232,120]
[392742392,1761900678584,500.0,0.00031232,120]
[392742393,1761900678631,500.0,0.00031232,120]
[392742394,1761900678821,500.0,0.00031506,120]
[392742395,1761900678866,500.0,0.00031506,120]
[392742396,1761900678995,500.0,0.00031232,120]
[392742397,1761900679241,500.0,0.00031506,120]
[392742398,1761900681018,500.0,0.00031232,120]
[392742399,1761900681260,500.0,0.00031506,120]
[392742400,1761900681652,500.0,0.00031232,120]
[392742401,1761900681880,500.0,0.00031506,120]
[392742402,1761900682474,500.0,0.00031232,120]
[392742403,1761900682730,448.66791369,0.00031506,120]
[392742404,1761900682786,500.0,0.00031232,120]
[392742405,1761900682844,500.0,0.00031232,120]
[392742406,1761900683025,500.0,0.00031506,120]
[392742407,1761900683074,500.0,0.00031506,120]
[392742408,1761900684412,500.0,0.00031232,120]
[392742409,1761900684601,500.0,0.00031232,120]
[392742410,1761900684677,184.42999632,0.00031506,120]
[392742411,1761900685077,500.0,0.00031506,120]
[392742412,1761900685144,2000.0,0.000315,120]
[392742413,1761900685740,500.0,0.00031232,120]
[392742414,1761900686027,500.0,0.00031506,120]
[392742415,1761900686441,500.0,0.00031232,120]
[392742416,1761900686495,500.0,0.00031232,120]
[392742417,1761900686720,500.0,0.00031506,120]
[392742418,1761900686774,500.0,0.00031232,120]
[392742419,1761900686820,500.0,0.00031506,120]
[392742420,1761900686989,599.19430189,0.00031506,120]
[392742421,1761900688438,500.0,0.00031232,120]
[392742422,1761900688679,500.0,0.00031506,120]
[392742423,1761900688726,500.0,0.00031232,120]
[392742424,1761900688773,500.0,0.00031232,120]
[392742425,1761900688949,500.0,0.00031506,120]
[392742426,1761900688992,500.0,0.00031506,120]
[392742427,1761900689506,508.41782567,0.00031232,120]
[392742428,1761900690124,500.0,0.00031232,120]
[392742429,1761900690352,500.0,0.00031506,120]
[392742430,1761900690404,500.0,0.00031232,120]
[392742431,1761900690620,500.0,0.00031506,120]
[392742432,1761900690854,520.84392772,0.00031232,120]
[392742433,1761900691296,500.0,0.00031232,120]
[392742434,1761900691524,500.0,0.00031506,120]
[392742435,1761900691597,500.0,0.00031232,120]
[392742436,1761900691945,500.0,0.00031506,120]
[392742437,1761900692579,500.0,0.00031232,120]
[392742438,1761900692820,500.0,0.00031506,120]
[392742439,1761900693219,500.0,0.00031232,120]
[392742440,1761900693465,500.0,0.00031506,120]
[392742441,1761900693691,500.0,0.00031232,120]
[392742442,1761900693919,500.0,0.00031506,120]
[392742443,1761900694547,500.0,0.00031232,120]
[392742444,1761900694778,500.0,0.00031506,120]
[392742445,1761900694827,500.0,0.00031232,120]
[392742446,1761900695034,500.0,0.00031506,120]